fUSD/lending_fUSD_20241121
["ID","MTS","AMOUNT","RATE_DAILY","PERIOD"]
[342892924,1732195847241,-502.81616893,0.00041369,18]
[342892925,1732195847252,-500.0,0.00041369,18]
[342892926,1732195847261,-1406.23,0.00041369,18]
[342892927,1732195847271,-1443.92,0.00041369,18]
[342892928,1732195847280,-1513.21,0.00041369,18]
[342892929,1732195847290,-401.50158491,0.00041369,18]
[342892930,1732195847347,-98.49841509,0.00041369,18]
[342892931,1732195847356,-500.0,0.00041369,18]
[342892932,1732195847366,-225.21824079,0.00041369,18]
[342892933,1732195847977,-274.78175921,0.00041369,18]
[342892934,1732195847987,-500.0,0.00041369,18]
[342892935,1732195847997,-572.09,0.00041369,18]
[342892936,1732195848007,-500.0,0.00041369,18]
[342892937,1732195848016,-500.0,0.00041369,18]
[342892938,1732195848026,-529.12,0.00041369,18]
[342892939,1732195848037,-1250.3,0.00041369,18]
[342892940,1732195848046,-500.0,0.00041369,18]
[342892941,1732195848056,-500.0,0.00041369,18]
[342892942,1732195848066,-500.0,0.00041369,18]
[342892943,1732195848076,-500.0,0.00041369,18]
[342892944,1732195848090,-500.0,0.00041369,18]
[342892945,1732195848100,-500.0,0.00041369,18]
[342892946,1732195848110,-561.85,0.00041369,18]
[342892947,1732195848120,-500.0,0.00041369,18]
[342892948,1732195848130,-500.0,0.00041369,18]
[342892949,1732195848141,-500.0,0.00041369,18]
[342892950,1732195848151,-500.0,0.00041369,18]
[342892951,1732195848162,-511.2896297,0.00041369,18]
[342892952,1732195848172,-500.0,0.00041369,18]
[342892953,1732195848182,-779.05,0.00041369,18]
[342892954,1732195848192,-500.0,0.00041369,18]
[342892955,1732195848203,-500.0,0.00041369,18]
[342892956,1732195848212,-500.0,0.00041369,18]
[342892957,1732195848222,-500.0,0.00041369,18]
[342892958,1732195848231,-500.0,0.00041369,18]
[342892959,1732195848240,-500.0,0.00041369,18]
[342892960,1732195848254,-176.08603987,0.00041369,18]
[342892961,1732195848264,-500.0,0.00041369,18]
[342892962,1732195848273,-500.0,0.00041369,18]
[342892963,1732195848283,-500.0,0.00041369,18]
[342892964,1732195848293,-1865.33,0.00041369,18]
[342892965,1732195848303,-632.15,0.00041369,18]
[342892966,1732195848314,-378.98087054,0.00041369,18]
[342892967,1732195848324,-500.0,0.00041369,18]
[342892968,1732195848335,-500.0,0.00041369,18]
[342892969,1732195848344,-701.4,0.00041369,18]
[342892970,1732195848354,-920.36,0.00041369,18]
[342892971,1732195848363,-500.0,0.00041369,18]
[342892972,1732195848373,-500.0,0.00041369,18]
[342892973,1732195848382,-563.22,0.00041369,18]
[342892974,1732195848392,-500.0,0.00041369,18]
[342892975,1732195848402,-500.0,0.00041369,18]
[342892976,1732195848412,-500.0,0.00041369,18]
[342892977,1732195848422,-500.0,0.00041369,18]
[342892978,1732195848432,-894.83,0.00041369,18]
[342892979,1732195848443,-1741.55,0.00041369,18]
[342892980,1732195848453,-644.57,0.00041369,18]
[342892981,1732195848464,-1159.74,0.00041369,18]
[342892982,1732195848474,-500.0,0.00041369,18]
[342892983,1732195848484,-500.0,0.00041369,18]
[342892984,1732195848494,-500.0,0.00041369,18]
[342892985,1732195848503,-500.0,0.00041369,18]
[342892986,1732195848513,-500.0,0.00041369,18]
[342892987,1732195848523,-787.07,0.00041369,18]
[342892988,1732195848534,-723.85,0.00041369,18]
[342892989,1732195848543,-500.0,0.00041369,18]
[342892990,1732195848553,-852.83,0.00041369,18]
[342892991,1732195848563,-684.16,0.00041369,18]
[342892992,1732195848574,-1014.0,0.00041369,18]
[342892993,1732195848586,-500.0,0.00041369,18]
[342892994,1732195848596,-1926.33,0.00041369,18]
[342892995,1732195848607,-552.65,0.00041369,18]
[342892996,1732195848617,-500.0,0.00041369,18]
[342892997,1732195848627,-1471.17,0.00041369,18]
[342892998,1732195848637,-500.0,0.00041369,18]
[342892999,1732195848648,-500.0,0.00041369,18]
[342893000,1732195848658,-500.0,0.00041369,18]
[342893001,1732195848667,-500.0,0.00041369,18]
[342893002,1732195848677,-500.0,0.00041369,18]
[342893003,1732195848687,-500.0,0.00041369,18]
[342893004,1732195848696,-500.0,0.00041369,18]
[342893005,1732195848705,-500.0,0.00041369,18]
[342893006,1732195848715,-500.0,0.00041369,18]
[342893007,1732195848725,-500.0,0.00041369,18]
[342893008,1732195848735,-500.0,0.00041369,18]
[342893009,1732195848746,-2158.55,0.00041369,18]
[342893010,1732195848756,-480.24487953,0.00041369,18]
[342893011,1732195848765,-500.0,0.00041369,18]
[342893012,1732195848777,-500.0,0.00041369,18]
[342893013,1732195848790,-640.07065128,0.00041369,18]
[342893014,1732195848800,-500.0,0.00041369,18]
[342893015,1732195848810,-500.0,0.00041369,18]
[342893016,1732195848821,-500.0,0.00041369,18]
[342893017,1732195848831,-500.0,0.00041369,18]
[342893018,1732195848842,-500.0,0.00041369,18]
[342893019,1732195848852,-1665.32,0.00041369,18]
[342893020,1732195848864,-211.50103256,0.00041369,18]
[342893021,1732195848874,-1533.78,0.00041369,18]
[342893022,1732195848884,-500.0,0.00041369,18]
[342893023,1732195848894,-500.0,0.00041369,18]
[342893024,1732195848903,-500.0,0.00041369,18]
[342893025,1732195848913,-500.0,0.00041369,18]
[342893026,1732195848924,-500.0,0.00041369,18]
[342893027,1732195848934,-594.25,0.00041369,18]
[342893028,1732195848945,-720.49,0.00041369,18]
[342893029,1732195848954,-500.0,0.00041369,18]
[342893030,1732195848964,-1076.45,0.00041369,18]
[342893031,1732195848974,-600.34,0.00041369,18]
[342893032,1732195848984,-564.62,0.00041369,18]
[342893033,1732195848994,-500.0,0.00041369,18]
[342893034,1732195849005,-146.64358407,0.00041369,18]
[342893035,1732195849021,-353.35641593,0.00041369,18]
[342893036,1732195849031,-796.32,0.00041369,18]
[342893037,1732195849041,-89.63474863,0.00041369,18]
[342893038,1732195849171,-511.78747528,0.00041369,18]
[342893039,1732195849181,-500.0,0.00041369,18]
[342893040,1732195849190,-500.0,0.00041369,18]
[342893041,1732195849199,-938.39,0.00041369,18]
[342893042,1732195849209,-1672.39,0.00041369,18]
[342893043,1732195849219,-1257.38,0.00041369,18]
[342893044,1732195849229,-1012.43,0.00041369,18]
[342893045,1732195849239,-500.0,0.00041369,18]
[342893046,1732195849249,-500.0,0.00041369,18]
[342893047,1732195849258,-549.28,0.00041369,18]
[342893048,1732195849268,-500.0,0.00041369,18]
[342893049,1732195849278,-500.0,0.00041369,18]
[342893050,1732195849287,-500.0,0.00041369,18]
[342893051,1732195849297,-500.0,0.00041369,18]
[342893052,1732195849307,-650.32,0.00041369,18]
[342893053,1732195849316,-2928.95,0.00041369,18]
[342893054,1732195849325,-687.46,0.00041369,18]
[342893055,1732195849337,-739.96,0.00041369,18]
[342893056,1732195849347,-500.0,0.00041369,18]
[342893057,1732195849356,-1835.4,0.00041369,18]
[342893058,1732195849367,-932.94,0.00041369,18]
[342893059,1732195849377,-500.0,0.00041369,18]
[342893060,1732195849387,-500.0,0.00041369,18]
[342893061,1732195849396,-500.0,0.00041369,18]
[342893062,1732195849406,-500.0,0.00041369,18]
[342893063,1732195849417,-500.0,0.00041369,18]
[342893064,1732195849427,-1031.15,0.00041369,18]
[342893065,1732195849436,-760.5,0.00041369,18]
[342893066,1732195849447,-500.0,0.00041369,18]
[342893067,1732195849456,-500.0,0.00041369,18]
[342893068,1732195849466,-500.0,0.00041369,18]
[342893069,1732195849475,-531.16,0.00041369,18]
[342893070,1732195849485,-500.0,0.00041369,18]
[342893071,1732195849494,-685.63,0.00041369,18]
[342893072,1732195849504,-500.0,0.00041369,18]
[342893073,1732195849514,-407.1553364,0.00041369,18]
[342893074,1732195849525,-1702.3,0.00041369,18]
[342893075,1732195849534,-110.97861011,0.00041369,18]
[342893076,1732195850344,-250.0,0.00040537,2]
[342893077,1732195850359,-665.72,0.00041095,18]
[342893078,1732195850368,-389.02138989,0.00041369,18]
[342893079,1732195850377,-1503.08,0.00041369,18]
[342893080,1732195850386,-661.75,0.00041369,18]
[342893081,1732195850395,-500.0,0.00041369,18]
[342893082,1732195850405,-719.09,0.00041369,18]
[342893083,1732195850414,-397.37554028,0.00041369,18]
[342893084,1732195850424,-544.02,0.00041369,18]
[342893085,1732195850434,-613.2,0.00041369,18]
[342893086,1732195850443,-500.0,0.00041369,18]
[342893087,1732195850452,-530.72,0.00041369,18]
[342893088,1732195850462,-768.12,0.00041369,18]
[342893089,1732195850471,-1078.85,0.00041369,18]
[342893090,1732195850480,-500.0,0.00041369,18]
[342893091,1732195850490,-732.78,0.00041369,18]
[342893092,1732195850499,-1096.53,0.00041369,18]
[342893093,1732195850509,-500.0,0.00041369,18]
[342893094,1732195850519,-500.0,0.00041369,18]
[342893095,1732195850528,-500.0,0.00041369,18]
[342893096,1732195850536,-500.0,0.00041369,18]
[342893097,1732195850546,-809.05,0.00041369,18]
[342893098,1732195850556,-504.72,0.00041369,18]
[342893099,1732195850566,-500.0,0.00041369,18]
[342893100,1732195850575,-936.43,0.00041369,18]
[342893101,1732195850590,-500.0,0.00041369,18]
[342893102,1732195850600,-500.0,0.00041369,18]
[342893103,1732195850609,-569.23,0.00041369,18]
[342893104,1732195850619,-500.0,0.00041369,18]
[342893105,1732195850628,-1050.16982274,0.00041369,18]
[342893106,1732195850648,-2871.85017726,0.00041369,18]
[342893107,1732195850657,-500.0,0.00041369,18]
[342893108,1732195850666,-505.37,0.00041369,18]
[342893109,1732195850675,-500.0,0.00041369,18]
[342893110,1732195850685,-797.06,0.00041369,18]
[342893111,1732195850694,-500.0,0.00041369,18]
[342893112,1732195850703,-1789.97,0.00041369,18]
[342893113,1732195850713,-500.0,0.00041369,18]
[342893114,1732195850722,-500.0,0.00041369,18]
[342893115,1732195850731,-652.14,0.00041369,18]
[342893116,1732195850741,-500.0,0.00041369,18]
[342893117,1732195850750,-500.0,0.00041369,18]
[342893118,1732195850760,-1542.1,0.00041369,18]
[342893119,1732195850770,-21299.38021878,0.00041369,5]
[342893120,1732195850788,-293.88213927,0.00041369,5]
[342893121,1732195850799,-3543.71442733,0.00041369,5]
[342893122,1732195850818,-4405.87833759,0.00041369,5]
[342893123,1732195850830,-564.999995,0.00041369,5]
[342893124,1732195850846,-1225.7,0.00041369,5]
[342893125,1732195850859,-300.560802,0.00041369,5]
[342893126,1732195850870,-352.74,0.00041369,5]
[342893127,1732195851232,-545.21408003,0.00041369,5]
[342893128,1732195851242,-567.48,0.00041369,18]
[342893129,1732195851251,-1166.53,0.00041369,18]
[342893130,1732195851261,-154.43351997,0.00041369,18]
[342893131,1732195851272,-1594.69648003,0.00041369,18]
[342893132,1732195851282,-500.0,0.00041369,18]
[342893133,1732195851291,-737.94,0.00041369,18]
[342893134,1732195851301,-500.0,0.00041369,18]
[342893135,1732195851309,-500.0,0.00041369,18]
[342893136,1732195851319,-620.06851997,0.00041369,18]
[342893137,1732195851331,-670.79148003,0.00041369,18]
[342893138,1732195851345,-509.85,0.00041369,18]
[342893139,1732195851354,-1424.21,0.00041369,18]
[342893140,1732195851363,-500.0,0.00041369,18]
[342893141,1732195851372,-543.72,0.00041369,18]
[342893142,1732195851382,-540.88,0.00041369,18]
[342893143,1732195851391,-500.0,0.00041369,18]
[342893144,1732195851400,-639.45,0.00041369,18]
[342893145,1732195851410,-1689.67,0.00041369,18]
[342893146,1732195851419,-2461.39,0.00041369,18]
[342893147,1732195851428,-500.0,0.00041369,18]
[342893148,1732195851437,-781.53,0.00041369,18]
[342893149,1732195851446,-500.0,0.00041369,18]
[342893150,1732195851455,-500.0,0.00041369,18]
[342893151,1732195851464,-251.37102042,0.00041369,18]
[342893152,1732195851908,-248.62897958,0.00041369,18]
[342893153,1732195851918,-859.4,0.00041369,18]
[342893154,1732195851927,-500.0,0.00041369,18]
[342893155,1732195851937,-690.4,0.00041369,18]
[342893156,1732195851946,-500.0,0.00041369,18]
[342893157,1732195851955,-500.0,0.00041369,18]
[342893158,1732195851964,-165.14317427,0.00041369,18]
[342893159,1732195851974,-500.0,0.00041369,18]
[342893160,1732195851983,-500.0,0.00041369,18]
[342893161,1732195851992,-500.0,0.00041369,18]
[342893162,1732195852001,-500.0,0.00041369,18]
[342893163,1732195852011,-561.7,0.00041369,18]
[342893164,1732195852020,-2050.8,0.00041369,18]
[342893165,1732195852029,-670.37,0.00041369,18]
[342893166,1732195852039,-500.0,0.00041369,18]
[342893167,1732195852049,-983.64,0.00041369,18]
[342893168,1732195852058,-500.0,0.00041369,18]
[342893169,1732195852069,-3377.27,0.00041369,18]
[342893170,1732195852078,-500.0,0.00041369,18]
[342893171,1732195852091,-1372.04,0.00041369,18]
[342893172,1732195852100,-500.0,0.00041369,18]
[342893173,1732195852109,-500.0,0.00041369,18]
[342893174,1732195852118,-2488.60784615,0.00041369,18]
[342893175,1732195852134,-105.94215385,0.00041369,18]
[342893176,1732195852143,-3178.09,0.00041369,18]
[342893177,1732195852152,-1131.17,0.00041369,18]
[342893178,1732195852162,-735.3,0.00041369,18]
[342893179,1732195852171,-500.0,0.00041369,18]
[342893180,1732195852180,-716.86,0.00041369,18]
[342893181,1732195852189,-866.32,0.00041369,18]
[342893182,1732195852198,-500.0,0.00041369,18]
[342893183,1732195852207,-506.74715668,0.00041369,18]
[342893184,1732195852217,-215.17915266,0.00041369,18]
[342893185,1732195852225,-500.0,0.00041369,18]
[342893186,1732195852235,-557.26,0.00041369,18]
[342893187,1732195852244,-500.0,0.00041369,18]
[342893188,1732195852253,-837.6,0.00041369,18]
[342893189,1732195852262,-2674.29,0.00041369,18]
[342893190,1732195852271,-841.66,0.00041369,18]
[342893191,1732195852281,-603.85,0.00041369,18]
[342893192,1732195852290,-500.0,0.00041369,18]
[342893193,1732195852299,-500.0,0.00041369,18]
[342893194,1732195852309,-1556.96,0.00041369,18]
[342893195,1732195852319,-500.0,0.00041369,18]
[342893196,1732195852328,-500.0,0.00041369,18]
[342893197,1732195852338,-625.64,0.00041369,18]
[342893198,1732195852347,-1250.49,0.00041369,18]
[342893199,1732195852357,-500.0,0.00041369,18]
[342893200,1732195852366,-500.0,0.00041369,18]
[342893201,1732195852376,-339.27057863,0.00041369,18]
[342893202,1732195852386,-1017.21,0.00041369,18]
[342893203,1732195852395,-690.97,0.00041369,18]
[342893204,1732195852404,-500.0,0.00041369,18]
[342893205,1732195852413,-512.95,0.00041369,18]
[342893206,1732195852422,-1680.64,0.00041369,18]
[342893207,1732195852432,-500.0,0.00041369,18]
[342893208,1732195852441,-827.53,0.00041369,18]
[342893209,1732195852450,-683.51,0.00041369,18]
[342893210,1732195852459,-500.0,0.00041369,18]
[342893211,1732195852468,-726.65,0.00041369,18]
[342893212,1732195852477,-632.81,0.00041369,18]
[342893213,1732195852487,-500.0,0.00041369,18]
[342893214,1732195852496,-1500.0,0.00041369,120]
[342893215,1732195852506,-786.22,0.00041369,18]
[342893216,1732195852515,-500.0,0.00041369,18]
[342893217,1732195852524,-4441.58,0.00041369,18]
[342893218,1732195852533,-500.0,0.00041369,18]
[342893219,1732195852543,-658.63227282,0.00041369,18]
[342893220,1732195852555,-941.5260415,0.00041369,18]
[342893221,1732195852567,-444.50168568,0.00041369,18]
[342893222,1732195852577,-1861.94,0.00041369,18]
[342893223,1732195852588,-500.0,0.00041369,18]
[342893224,1732195852598,-857.31,0.00041369,18]
[342893225,1732195852608,-500.0,0.00041369,18]
[342893226,1732195852617,-4263.64,0.00041369,18]
[342893227,1732195852627,-500.0,0.00041369,18]
[342893228,1732195852636,-500.0,0.00041369,18]
[342893229,1732195852645,-500.0,0.00041369,18]
[342893230,1732195852655,-500.0,0.00041369,18]
[342893231,1732195852665,-500.0,0.00041369,18]
[342893232,1732195852674,-500.0,0.00041369,18]
[342893233,1732195852684,-8.4318205,0.00041369,18]
[342893234,1732195852752,167.13,0.00032415,2]
[342893235,1732195853020,-3037.6281795,0.00041369,18]
[342893236,1732195853030,-500.0,0.00041369,18]
[342893237,1732195853039,-794.62,0.00041369,18]
[342893238,1732195853048,-510.23,0.00041369,18]
[342893239,1732195853057,-1085.34,0.00041369,18]
[342893240,1732195853066,-500.0,0.00041369,18]
[342893241,1732195853075,-500.0,0.00041369,18]
[342893242,1732195853084,-1245.02,0.00041369,18]
[342893243,1732195853096,-1866.24,0.00041369,18]
[342893244,1732195853105,-534.67,0.00041369,18]
[342893245,1732195853114,-548.52,0.00041369,18]
[342893246,1732195853123,-500.0,0.00041369,18]
[342893247,1732195853132,-500.74,0.00041369,18]
[342893248,1732195853141,-7604.08,0.00041369,18]
[342893249,1732195853150,-568.32,0.00041369,18]
[342893250,1732195853159,-4301.47,0.00041369,18]
[342893251,1732195853169,-777.29,0.00041369,18]
[342893252,1732195853178,-1240.07,0.00041369,18]
[342893253,1732195853187,-500.0,0.00041369,18]
[342893254,1732195853196,-500.0,0.00041369,18]
[342893255,1732195853205,-151.0,0.00041369,14]
[342893256,1732195853213,-1498.98,0.00041369,18]
[342893257,1732195853225,-592.67,0.00041369,18]
[342893258,1732195853234,-536.96,0.00041369,18]
[342893259,1732195853243,-500.0,0.00041369,18]
[342893260,1732195853251,-500.0,0.00041369,18]
[342893261,1732195853260,-500.0,0.00041369,18]
[342893262,1732195853269,-1127.27,0.00041369,18]
[342893263,1732195853278,-3065.36,0.00041369,18]
[342893264,1732195853286,-500.0,0.00041369,18]
[342893265,1732195853295,-500.0,0.00041369,18]
[342893266,1732195853304,-3137.78,0.00041369,18]
[342893267,1732195853313,-911.93,0.00041369,18]
[342893268,1732195853322,-605.86,0.00041369,18]
[342893269,1732195853331,-900.51,0.00041369,18]
[342893270,1732195853342,-508.56,0.00041369,18]
[342893271,1732195853351,-500.0,0.00041369,18]
[342893272,1732195853360,-500.0,0.00041369,18]
[342893273,1732195853368,-466.00711848,0.00041369,18]
[342893274,1732195853387,-707.40288152,0.00041369,18]
[342893275,1732195853396,-2439.1,0.00041369,18]
[342893276,1732195853405,-590.67,0.00041369,18]
[342893277,1732195853414,-500.0,0.00041369,18]
[342893278,1732195853423,-500.0,0.00041369,18]
[342893279,1732195853432,-118.83461049,0.00041369,18]
[342893280,1732195853443,-2445.72538951,0.00041369,18]
[342893281,1732195853452,-13.62461049,0.00041369,18]
[342893282,1732195853462,-1764.86538951,0.00041369,18]
[342893283,1732195853471,-500.0,0.00041369,18]
[342893284,1732195853480,-500.0,0.00041369,18]
[342893285,1732195853489,-864.65,0.00041369,18]
[342893286,1732195853498,-500.0,0.00041369,18]
[342893287,1732195853507,-676.25,0.00041369,18]
[342893288,1732195853516,-3131.74,0.00041369,18]
[342893289,1732195853525,-2364.37,0.00041369,18]
[342893290,1732195853533,-660.47,0.00041369,18]
[342893291,1732195853542,-500.0,0.00041369,18]
[342893292,1732195853551,-500.0,0.00041369,18]
[342893293,1732195853672,-558.59,0.00041369,18]
[342893294,1732195853692,-500.0,0.00041369,18]
[342893295,1732195853702,-500.0,0.00041369,18]
[342893296,1732195853711,-671.65,0.00041369,18]
[342893297,1732195853720,-500.0,0.00041369,18]
[342893298,1732195853730,-1868.01,0.00041369,18]
[342893299,1732195853739,-500.0,0.00041369,18]
[342893300,1732195853749,-500.0,0.00041369,18]
[342893301,1732195853758,-500.0,0.00041369,18]
[342893302,1732195853767,-608.36,0.00041369,18]
[342893303,1732195853780,-500.0,0.00041369,18]
[342893304,1732195853789,-1354.62,0.00041369,18]
[342893305,1732195853798,-2664.51,0.00041369,18]
[342893306,1732195853807,-1433.5,0.00041369,18]
[342893307,1732195853816,-500.0,0.00041369,18]
[342893308,1732195853826,-500.0,0.00041369,18]
[342893309,1732195853835,-7777.2,0.00041369,18]
[342893310,1732195853849,-1650.84,0.00041369,18]
[342893311,1732195853859,-500.0,0.00041369,18]
[342893312,1732195853869,-1361.15,0.00041369,18]
[342893313,1732195853878,-500.0,0.00041369,18]
[342893314,1732195853888,-500.0,0.00041369,18]
[342893315,1732195853897,-997.88,0.00041369,18]
[342893316,1732195853907,-368.87107635,0.00041369,18]
[342893317,1732195853916,-871.34,0.00041369,18]
[342893318,1732195853925,-2988.37,0.00041369,18]
[342893319,1732195853935,-6059.29,0.00041369,18]
[342893320,1732195853944,-500.0,0.00041369,18]
[342893321,1732195853954,-500.0,0.00041369,18]
[342893322,1732195853963,-4892.38,0.00041369,18]
[342893323,1732195853971,-500.0,0.00041369,18]
[342893324,1732195853980,-535.04,0.00041369,18]
[342893325,1732195853990,-589.99,0.00041369,18]
[342893326,1732195853999,-500.0,0.00041369,18]
[342893327,1732195854008,-5803.39,0.00041369,18]
[342893328,1732195854018,-2261.87,0.00041369,18]
[342893329,1732195854027,-500.0,0.00041369,18]
[342893330,1732195854036,-462.09713354,0.00041369,18]
[342893331,1732195854049,-537.90286646,0.00041369,18]
[342893332,1732195854058,-2762.12,0.00041369,18]
[342893333,1732195854067,-500.0,0.00041369,18]
[342893334,1732195854077,-602.56,0.00041369,7]
[342893335,1732195854090,-446.41713354,0.00041369,18]
[342893336,1732195854108,-53.58286646,0.00041369,18]
[342893337,1732195854117,-500.0,0.00041369,18]
[342893338,1732195854126,-418.49741354,0.00041369,18]
[342893339,1732195854139,-1929.30258646,0.00041369,18]
[342893340,1732195854148,-1158.3,0.00041369,18]
[342893341,1732195854158,-663.98,0.00041369,18]
[342893342,1732195854167,-1001.31,0.00041369,18]
[342893343,1732195854176,-424.29208993,0.00041369,18]
[342893344,1732195854186,-1184.49,0.00041369,18]
[342893345,1732195854195,-500.0,0.00041369,18]
[342893346,1732195854205,-500.0,0.00041369,18]
[342893347,1732195854214,-500.0,0.00041369,18]
[342893348,1732195854224,-3828.48,0.00041369,18]
[342893349,1732195854233,-501.44,0.00041369,18]
[342893350,1732195854242,-1200.40532361,0.00041369,18]
[342893351,1732195854254,-1297.77467639,0.00041369,18]
[342893352,1732195854264,-500.0,0.00041369,18]
[342893353,1732195854273,-8887.51,0.00041369,18]
[342893354,1732195854283,-500.0,0.00041369,18]
[342893355,1732195854293,-1353.65,0.00041369,18]
[342893356,1732195854302,-500.0,0.00041369,18]
[342893357,1732195854312,-282.901258,0.00041369,14]
[342893358,1732195854322,-500.0,0.00041369,18]
[342893359,1732195854331,-811.12,0.00041369,18]
[342893360,1732195854347,-3255.26,0.00041369,18]
[342893361,1732195854357,-500.0,0.00041369,18]
[342893362,1732195854366,-739.2,0.00041369,18]
[342893363,1732195854376,-500.0,0.00041369,18]
[342893364,1732195854385,-500.0,0.00041369,18]
[342893365,1732195854395,-151.0,0.00041369,14]
[342893366,1732195854404,-523.12,0.00041369,18]
[342893367,1732195854414,-1875.63,0.00041369,18]
[342893368,1732195854423,-953.15,0.00041369,18]
[342893369,1732195854432,-500.0,0.00041369,18]
[342893370,1732195854441,-500.0,0.00041369,18]
[342893371,1732195854450,-696.98,0.00041369,18]
[342893372,1732195854459,-500.0,0.00041369,18]
[342893373,1732195854468,-500.0,0.00041369,18]
[342893374,1732195854478,-1071.93,0.00041369,18]
[342893375,1732195854487,-1555.52,0.00041369,18]
[342893376,1732195854496,-372.97,0.00041369,18]
[342893377,1732195854506,-926.45,0.00041369,18]
[342893378,1732195854515,-1594.43658074,0.00041369,18]
[342893379,1732195854527,-463.58143122,0.00041369,18]
[342893380,1732195854538,-3.18198804,0.00041369,18]
[342893381,1732195854548,-742.56,0.00041369,18]
[342893382,1732195854557,-919.93,0.00041369,18]
[342893383,1732195854567,-500.0,0.00041369,18]
[342893384,1732195854577,-574.68,0.00041369,18]
[342893385,1732195854587,-940.79,0.00041369,18]
[342893386,1732195854602,-500.0,0.00041369,18]
[342893387,1732195854611,-837.08,0.00041369,18]
[342893388,1732195854621,-500.0,0.00041369,18]
[342893389,1732195854632,-500.0,0.00041369,18]
[342893390,1732195854642,-163.46654777,0.00041369,18]
[342893391,1732195854654,-336.53345223,0.00041369,18]
[342893392,1732195854665,-1219.10654777,0.00041369,18]
[342893393,1732195857318,238.413,0.00024435,2]
[342893394,1732195857437,238.413,0.00033747,2]
[342893396,1732196267778,160.1,0.00015342,2]
[342893397,1732196734554,-452.1755,0.00024543,2]
[342893398,1732196734576,-1537.39490994,0.00024632,2]
[342893399,1732196752159,-153.90519587,0.00024632,2]
[342893400,1732196752180,-500.0,0.00024932,2]
[342893401,1732196752202,-558.65,0.00026986,120]
[342893402,1732196752224,-730.52019184,0.00030448,2]
[342893403,1732196752246,-160.1,0.00030548,2]
[342893404,1732196752266,-150.0,0.00033808,2]
[342893405,1732196752290,-452.1755,0.00033832,2]
[342893406,1732196752312,-908.97421151,0.000341,5]
[342893407,1732196800013,-150.0,0.00020001,2]
[342893408,1732196828115,-3119.08743041,0.00033539,2]
[342893409,1732196828147,-1975.01940759,0.00033539,2]
[342893410,1732196828167,-730.52019182,0.00033708,2]
[342893411,1732196828188,-200.0,0.00033799,30]
[342893412,1732196828208,-4620.46583654,0.000338,5]
[342893413,1732196829109,-6028.53416346,0.000338,5]
[342893414,1732196829132,-479.76622282,0.00034,2]
[342893415,1732196829153,-150.0,0.00034548,10]
[342893416,1732196829176,-4500.46007381,0.00035323,30]
[342893417,1732196834143,-2442.58271615,0.00035323,30]
[342893418,1732196841108,-350.76728913,0.000315,30]
[342893419,1732196841131,-9261.61721004,0.00035323,30]
[342893420,1732196841157,-1135.16,0.00036405,2]
[342893421,1732196841180,-2693.57,0.00037674,2]
[342893422,1732196841202,-167.94,0.00037739,2]
[342893423,1732196841224,-23900.0,0.00037798,2]
[342893424,1732196841248,-1002.94577313,0.00038,120]